fUST/lending_fUST_20250901
["ID","MTS","AMOUNT","RATE_DAILY","PERIOD"]
[382626785,1756685447833,-500.0,0.00016351,2]
[382626786,1756685447843,-753.19,0.00016351,2]
[382626787,1756685447853,-480.0,0.00016352,2]
[382626788,1756685447863,-480.0,0.00016352,2]
[382626789,1756685447872,-480.0,0.00016352,2]
[382626790,1756685447882,-480.0,0.00016352,2]
[382626791,1756685447892,-574.12,0.00016352,2]
[382626792,1756685447902,-151.0,0.00016352,2]
[382626793,1756685447916,-151.0,0.00016352,2]
[382626794,1756685447926,-480.0,0.00016352,2]
[382626795,1756685447935,-480.0,0.00016352,2]
[382626796,1756685447946,-480.0,0.00016352,2]
[382626797,1756685447956,-1093.38,0.00016352,2]
[382626798,1756685447965,-480.0,0.00016352,2]
[382626799,1756685447975,-480.0,0.00016352,2]
[382626800,1756685447984,-929.21,0.00016352,2]
[382626801,1756685447994,-480.0,0.00016352,2]
[382626802,1756685448003,-480.0,0.00016352,2]
[382626803,1756685448012,-480.0,0.00016352,2]
[382626804,1756685448022,-480.0,0.00016352,2]
[382626805,1756685448032,-480.0,0.00016352,2]
[382626806,1756685448041,-480.0,0.00016352,2]
[382626807,1756685448051,-1363.69,0.00016352,2]
[382626808,1756685448060,-554.9,0.00016352,2]
[382626809,1756685448069,-480.0,0.00016352,2]
[382626810,1756685448079,-480.0,0.00016352,2]
[382626811,1756685448088,-1275.66,0.00016352,2]
[382626812,1756685448098,-480.0,0.00016352,2]
[382626813,1756685448109,-751.92,0.00016352,2]
[382626814,1756685448123,-480.0,0.00016352,2]
[382626815,1756685448134,-780.61,0.00016352,2]
[382626816,1756685448144,-480.0,0.00016352,2]
[382626817,1756685448153,-607.72,0.00016352,2]
[382626818,1756685448166,-480.0,0.00016352,2]
[382626819,1756685448176,-724.68,0.00016352,2]
[382626820,1756685448187,-480.0,0.00016352,2]
[382626821,1756685448197,-880.63,0.00016352,2]
[382626822,1756685448208,-480.0,0.00016352,2]
[382626823,1756685448221,-555.01,0.00016352,2]
[382626824,1756685448231,-480.0,0.00016352,2]
[382626825,1756685448241,-480.0,0.00016352,2]
[382626826,1756685448251,-944.64,0.00016352,2]
[382626827,1756685448261,-480.0,0.00016352,2]
[382626828,1756685448271,-1089.55,0.00016352,2]
[382626829,1756685448281,-1032.94,0.00016352,2]
[382626830,1756685448291,-1052.92,0.00016352,2]
[382626831,1756685448300,-690.02,0.00016352,2]
[382626832,1756685448310,-4102.3,0.00016352,2]
[382626833,1756685448320,-1091.9,0.00016352,2]
[382626834,1756685448330,-480.0,0.00016352,2]
[382626835,1756685448340,-1632.11,0.00016352,2]
[382626836,1756685448351,-480.0,0.00016352,2]
[382626837,1756685448360,-480.0,0.00016352,2]
[382626838,1756685448370,-6195.31,0.00016352,2]
[382626839,1756685448380,-1247.77,0.00016352,2]
[382626840,1756685448390,-933.86,0.00016352,2]
[382626841,1756685448399,-1011.81,0.00016352,2]
[382626842,1756685448411,-1400.63,0.00016352,2]
[382626843,1756685448421,-1343.04,0.00016352,2]
[382626844,1756685448431,-5724.9,0.00016352,2]
[382626845,1756685448440,-151.0,0.00016353,2]
[382626846,1756685448450,-500.0,0.00016353,2]
[382626847,1756685448460,-151.0,0.00016353,2]
[382626848,1756685448470,-245.0,0.00016353,2]
[382626849,1756685448479,-151.0,0.00016353,2]
[382626850,1756685448489,-151.0,0.00016353,2]
[382626851,1756685448499,-151.0,0.00016353,2]
[382626852,1756685448508,-151.0,0.00016353,2]
[382626853,1756685448518,-194.292094,0.00016353,2]
[382626854,1756685448528,-3028.397421,0.00016353,2]
[382626855,1756685448537,-753.19,0.00016353,2]
[382626856,1756685448547,-753.19,0.00016353,2]
[382626857,1756685448557,-753.19,0.00016353,2]
[382626858,1756685448567,-753.19,0.00016353,2]
[382626859,1756685448577,-753.26629578,0.00016353,2]
[382626860,1756685448587,-157.444891,0.00016353,2]
[382626861,1756685448596,-1391.2,0.00016353,2]
[382626862,1756685448606,-647.42,0.00016353,2]
[382626863,1756685448616,-480.0,0.00016354,2]
[382626864,1756685448626,-491.55237605,0.00016354,2]
[382626865,1756685448635,-480.0,0.00016354,2]
[382626866,1756685448645,-480.0,0.00016354,2]
[382626867,1756685448656,-282.73421444,0.00016354,2]
[382626868,1756685448666,-480.0,0.00016354,2]
[382626869,1756685448676,-480.0,0.00016354,2]
[382626870,1756685448686,-480.0,0.00016354,2]
[382626871,1756685448696,-480.0,0.00016354,2]
[382626872,1756685448706,-480.0,0.00016354,2]
[382626873,1756685448715,-1089.02,0.00016354,2]
[382626874,1756685448725,-480.0,0.00016354,2]
[382626875,1756685448735,-480.0,0.00016354,2]
[382626876,1756685448744,-480.0,0.00016354,2]
[382626877,1756685448754,-480.0,0.00016354,2]
[382626878,1756685448764,-480.0,0.00016354,2]
[382626879,1756685448774,-844.48,0.00016354,2]
[382626880,1756685448784,-480.0,0.00016354,2]
[382626881,1756685448793,-480.0,0.00016354,2]
[382626882,1756685448803,-484.91050785,0.00016354,2]
[382626883,1756685448812,-848.07,0.00016354,2]
[382626884,1756685448822,-480.0,0.00016354,2]
[382626885,1756685448831,-480.0,0.00016354,2]
[382626886,1756685448841,-480.0,0.00016354,2]
[382626887,1756685448851,-1222.65,0.00016354,2]
[382626888,1756685448861,-480.0,0.00016354,2]
[382626889,1756685448870,-580.21,0.00016354,2]
[382626890,1756685448880,-480.0,0.00016354,2]
[382626891,1756685448890,-480.0,0.00016354,2]
[382626892,1756685448900,-480.0,0.00016354,2]
[382626893,1756685448911,-480.0,0.00016354,2]
[382626894,1756685448921,-480.0,0.00016354,2]
[382626895,1756685448931,-1232.5,0.00016354,2]
[382626896,1756685448940,-480.0,0.00016354,2]
[382626897,1756685448950,-480.0,0.00016354,2]
[382626898,1756685448960,-480.0,0.00016354,2]
[382626899,1756685448969,-1161.79,0.00016354,2]
[382626900,1756685448979,-580.15751368,0.00016354,2]
[382626901,1756685448988,-480.0,0.00016354,2]
[382626902,1756685448998,-480.0,0.00016354,2]
[382626903,1756685449007,-517.46,0.00016354,2]
[382626904,1756685449016,-151.0,0.00016354,2]
[382626905,1756685449026,-480.0,0.00016354,2]
[382626906,1756685449035,-151.0,0.00016354,2]
[382626907,1756685449044,-480.0,0.00016354,2]
[382626908,1756685449055,-480.0,0.00016354,2]
[382626909,1756685449064,-347.7394083,0.00016354,2]
[382626910,1756685449074,-480.0,0.00016354,2]
[382626911,1756685449084,-480.0,0.00016354,2]
[382626912,1756685449094,-480.0,0.00016354,2]
[382626913,1756685449103,-480.0,0.00016354,2]
[382626914,1756685449119,-764.44,0.00016354,2]
[382626915,1756685449129,-602.25,0.00016354,2]
[382626916,1756685449139,-480.0,0.00016354,2]
[382626917,1756685449149,-591.27,0.00016354,2]
[382626918,1756685449162,-480.0,0.00016354,2]
[382626919,1756685449172,-551.1974654,0.00016354,2]
[382626920,1756685449182,-480.0,0.00016354,2]
[382626921,1756685449192,-480.0,0.00016354,2]
[382626922,1756685449202,-480.0,0.00016354,2]
[382626923,1756685449211,-480.0,0.00016354,2]
[382626924,1756685449220,-480.0,0.00016354,2]
[382626925,1756685449230,-480.0,0.00016354,2]
[382626926,1756685449239,-480.0,0.00016354,2]
[382626927,1756685449249,-480.0,0.00016354,2]
[382626928,1756685449259,-564.25,0.00016354,2]
[382626929,1756685449269,-503.14,0.00016354,2]
[382626930,1756685449279,-561.85,0.00016354,2]
[382626931,1756685449289,-198.85582042,0.00016354,2]
[382626932,1756685449299,-480.0,0.00016354,2]
[382626933,1756685449308,-199.61855014,0.00016354,2]
[382626934,1756685449318,-480.0,0.00016354,2]
[382626935,1756685449328,-480.0,0.00016354,2]
[382626936,1756685449337,-1251.24,0.00016354,2]
[382626937,1756685449347,-480.0,0.00016354,2]
[382626938,1756685449356,-480.0,0.00016354,2]
[382626939,1756685449366,-480.0,0.00016354,2]
[382626940,1756685449375,-528.9,0.00016354,2]
[382626941,1756685449385,-722.01,0.00016354,2]
[382626942,1756685449394,-480.0,0.00016354,2]
[382626943,1756685449404,-480.0,0.00016354,2]
[382626944,1756685449418,-480.0,0.00016354,2]
[382626945,1756685449427,-480.0,0.00016354,2]
[382626946,1756685449437,-613.36,0.00016354,2]
[382626947,1756685449446,-473.10260644,0.00016354,2]
[382626948,1756685449456,-1180.51,0.00016354,2]
[382626949,1756685449465,-480.0,0.00016354,2]
[382626950,1756685449475,-480.0,0.00016354,2]
[382626951,1756685449484,-1255.54,0.00016354,2]
[382626952,1756685449493,-1235.7,0.00016354,2]
[382626953,1756685449503,-480.0,0.00016354,2]
[382626954,1756685449513,-480.0,0.00016354,2]
[382626955,1756685449523,-480.0,0.00016354,2]
[382626956,1756685449533,-480.0,0.00016354,2]
[382626957,1756685449542,-480.0,0.00016354,2]
[382626958,1756685449552,-647.81,0.00016354,2]
[382626959,1756685449561,-480.0,0.00016354,2]
[382626960,1756685449570,-381.87211716,0.00016354,2]
[382626961,1756685449580,-480.0,0.00016354,2]
[382626962,1756685449589,-480.0,0.00016354,2]
[382626963,1756685449599,-249.71944089,0.00016355,2]
[382626964,1756685449608,-151.0,0.00016355,2]
[382626965,1756685449618,-151.0,0.00016355,2]
[382626966,1756685449627,-480.0,0.00016355,2]
[382626967,1756685449637,-151.0,0.00016355,2]
[382626968,1756685449646,-480.0,0.00016355,2]
[382626969,1756685449656,-480.0,0.00016355,2]
[382626970,1756685449666,-480.0,0.00016355,2]
[382626971,1756685449676,-151.0,0.00016355,2]
[382626972,1756685449686,-151.0,0.00016355,2]
[382626973,1756685449695,-1796.04,0.00016355,2]
[382626974,1756685449704,-1120.17,0.00016355,2]
[382626975,1756685449714,-548.04,0.00016355,2]
[382626976,1756685449723,-676.86,0.00016355,2]
[382626977,1756685449733,-480.0,0.00016355,2]
[382626978,1756685449743,-1341.02,0.00016355,2]
[382626979,1756685449753,-728.5,0.00016355,2]
[382626980,1756685449762,-1269.83,0.00016355,2]
[382626981,1756685449815,-480.0,0.00016355,2]
[382626982,1756685449824,-884.44,0.00016355,2]
[382626983,1756685449833,-639.02,0.00016355,2]
[382626984,1756685449843,-1297.31,0.00016355,2]
[382626985,1756685449852,-480.0,0.00016355,2]
[382626986,1756685449862,-480.0,0.00016355,2]
[382626987,1756685449872,-612.66,0.00016355,2]
[382626988,1756685449881,-480.0,0.00016355,2]
[382626989,1756685449891,-480.0,0.00016355,2]
[382626990,1756685449899,-480.0,0.00016355,2]
[382626991,1756685449909,-480.0,0.00016355,2]
[382626992,1756685449918,-480.0,0.00016355,2]
[382626993,1756685449927,-1003.51,0.00016355,2]
[382626994,1756685449937,-805.19,0.00016355,2]
[382626995,1756685449946,-480.0,0.00016355,2]
[382626996,1756685449954,-729.22,0.00016355,2]
[382626997,1756685449964,-480.0,0.00016355,2]
[382626998,1756685449973,-480.0,0.00016355,2]
[382626999,1756685449983,-548.6,0.00016357,2]
[382627000,1756685449992,-480.0,0.00016357,2]
[382627001,1756685450002,-480.0,0.00016357,2]
[382627002,1756685450011,-480.0,0.00016357,2]
[382627003,1756685450020,-480.0,0.00016357,2]
[382627004,1756685450030,-480.0,0.00016357,2]
[382627005,1756685450039,-480.0,0.00016357,2]
[382627006,1756685450049,-480.0,0.00016357,2]
[382627007,1756685450059,-480.0,0.00016357,2]
[382627008,1756685450069,-480.0,0.00016357,2]
[382627009,1756685450078,-558.78,0.00016357,2]
[382627010,1756685450087,-619.57068782,0.00016357,2]
[382627011,1756685450097,-480.0,0.00016357,2]
[382627012,1756685450106,-480.0,0.00016357,2]
[382627013,1756685450120,-480.0,0.00016357,2]
[382627014,1756685450129,-480.0,0.00016357,2]
[382627015,1756685450139,-676.29,0.00016357,2]
[382627016,1756685450148,-480.0,0.00016357,2]
[382627017,1756685450159,-480.0,0.00016357,2]
[382627018,1756685450168,-480.0,0.00016357,2]
[382627019,1756685450178,-487.48883686,0.00016357,2]
[382627020,1756685450191,-673.12,0.00016357,2]
[382627021,1756685450200,-480.0,0.00016357,2]
[382627022,1756685450210,-400.49167426,0.00016357,2]
[382627023,1756685450219,-480.0,0.00016357,2]
[382627024,1756685450228,-480.0,0.00016357,2]
[382627025,1756685450238,-480.0,0.00016357,2]
[382627026,1756685450247,-564.43,0.00016357,2]
[382627027,1756685450258,-480.0,0.00016357,2]
[382627028,1756685450268,-480.0,0.00016357,2]
[382627029,1756685450278,-480.0,0.00016357,2]
[382627030,1756685450287,-480.0,0.00016357,2]
[382627031,1756685450297,-480.0,0.00016357,2]
[382627032,1756685450306,-480.0,0.00016357,2]
[382627033,1756685450315,-480.0,0.00016357,2]
[382627034,1756685450325,-916.42,0.00016357,2]
[382627035,1756685450335,-480.0,0.00016357,2]
[382627036,1756685450344,-480.0,0.00016357,2]
[382627037,1756685450353,-480.0,0.00016357,2]
[382627038,1756685450362,-480.0,0.00016357,2]
[382627039,1756685450372,-480.0,0.00016357,2]
[382627040,1756685450381,-987.62,0.00016357,2]
[382627041,1756685450391,-480.0,0.00016357,2]
[382627042,1756685450401,-666.32,0.00016357,2]
[382627043,1756685450412,-480.0,0.00016357,2]
[382627044,1756685450422,-773.64,0.00016357,2]
[382627045,1756685450431,-480.0,0.00016357,2]
[382627046,1756685450440,-480.0,0.00016357,2]
[382627047,1756685450450,-480.0,0.00016357,2]
[382627048,1756685450459,-480.0,0.00016357,2]
[382627049,1756685450469,-480.0,0.00016357,2]
[382627050,1756685450479,-480.0,0.00016357,2]
[382627051,1756685450488,-480.0,0.00016357,2]
[382627052,1756685450498,-480.0,0.00016357,2]
[382627053,1756685450507,-480.0,0.00016357,2]
[382627054,1756685450516,-480.0,0.00016357,2]
[382627055,1756685450526,-616.92,0.00016357,2]
[382627056,1756685450535,-957.57,0.00016357,2]
[382627057,1756685450545,-480.0,0.00016357,2]
[382627058,1756685450554,-1705.03,0.00016357,2]
[382627059,1756685450563,-480.0,0.00016357,2]
[382627060,1756685450573,-480.0,0.00016357,2]
[382627061,1756685450583,-151.0,0.00016357,2]
[382627062,1756685450592,-151.0,0.00016357,2]
[382627063,1756685450602,-480.0,0.00016357,2]
[382627064,1756685450611,-151.0,0.00016357,2]
[382627065,1756685450620,-579.36,0.00016357,2]
[382627066,1756685450629,-272.52744143,0.00016357,2]
[382627067,1756685450639,-1038.93,0.00016357,2]
[382627068,1756685450648,-480.0,0.00016357,2]
[382627069,1756685450659,-480.0,0.00016357,2]
[382627070,1756685450668,-317.78136051,0.00016357,2]
[382627071,1756685450678,-480.0,0.00016357,2]
[382627072,1756685450687,-480.0,0.00016357,2]
[382627073,1756685450696,-716.54,0.00016357,2]
[382627074,1756685450705,-480.0,0.00016357,2]
[382627075,1756685450715,-520.8,0.00016357,2]
[382627076,1756685450724,-839.95,0.00016357,2]
[382627077,1756685450733,-812.59,0.00016357,2]
[382627078,1756685450742,-664.14,0.00016357,2]
[382627079,1756685450751,-535.33,0.00016357,2]
[382627080,1756685450760,-480.0,0.00016357,2]
[382627081,1756685450770,-480.0,0.00016357,2]
[382627082,1756685450779,-435.65,0.00016357,2]
[382627083,1756685450789,-480.0,0.00016357,2]
[382627084,1756685450798,-1060.98,0.00016357,2]
[382627085,1756685450807,-480.0,0.00016357,2]
[382627086,1756685450816,-480.0,0.00016357,2]
[382627087,1756685450826,-480.0,0.00016357,2]
[382627088,1756685450836,-481.42,0.00016357,2]
[382627089,1756685450845,-201.02901203,0.00016357,2]
[382627090,1756685450855,-480.0,0.00016357,2]
[382627091,1756685450864,-480.0,0.00016357,2]
[382627092,1756685450873,-384.98239641,0.00016357,2]
[382627093,1756685450882,-480.0,0.00016357,2]
[382627094,1756685450892,-480.0,0.00016357,2]
[382627095,1756685450901,-480.0,0.00016357,2]
[382627096,1756685450914,-480.0,0.00016357,2]
[382627097,1756685450923,-480.0,0.00016357,2]
[382627098,1756685450933,-480.0,0.00016357,2]
[382627099,1756685450941,-528.76,0.00016357,2]
[382627100,1756685450950,-480.0,0.00016357,2]
[382627101,1756685450960,-633.04,0.00016357,2]
[382627102,1756685450969,-1300.16,0.00016357,2]
[382627103,1756685450978,-774.12,0.00016357,2]
[382627104,1756685450987,-480.0,0.00016357,2]
[382627105,1756685450996,-480.0,0.00016357,2]
[382627106,1756685451005,-480.0,0.00016357,2]
[382627107,1756685451015,-379.0,0.0001637,2]
[382627108,1756685451024,-500.0,0.00016373,2]
[382627109,1756685451033,-213.6364315,0.00016373,2]
[382627110,1756685451043,-500.0,0.00016373,2]
[382627111,1756685451052,-500.0,0.00016373,2]
[382627112,1756685451061,-500.0,0.00016373,2]
[382627113,1756685451071,-500.0,0.00016373,2]
[382627114,1756685451080,-500.0,0.00016373,2]
[382627115,1756685451089,-500.0,0.00016373,2]
[382627116,1756685451098,-500.0,0.00016373,2]
[382627117,1756685451110,-510.94333666,0.00016373,2]
[382627118,1756685451120,-500.0,0.00016373,2]
[382627119,1756685451129,-500.0,0.00016373,2]
[382627120,1756685451138,-500.0,0.00016373,2]
[382627121,1756685451147,-500.0,0.00016373,2]
[382627122,1756685451160,-501.21878673,0.00016373,2]
[382627123,1756685451170,-500.0,0.00016373,2]
[382627124,1756685451181,-500.44109157,0.00016373,2]
[382627125,1756685451190,-500.0,0.00016373,2]
[382627126,1756685451200,-500.0,0.00016373,2]
[382627127,1756685451209,-500.0,0.00016373,2]
[382627128,1756685451219,-500.0,0.00016373,2]
[382627129,1756685451228,-500.0,0.00016373,2]
[382627130,1756685451237,-500.0,0.00016373,2]
[382627131,1756685451247,-500.0,0.00016373,2]
[382627132,1756685451256,-500.0,0.00016373,2]
[382627133,1756685451265,-500.0,0.00016373,2]
[382627134,1756685451275,-500.0,0.00016373,2]
[382627135,1756685451284,-500.0,0.00016373,2]
[382627136,1756685451294,-500.0,0.00016373,2]
[382627137,1756685451303,-500.0,0.00016373,2]
[382627138,1756685451312,-500.0,0.00016373,2]
[382627139,1756685451322,-162.28722497,0.00016373,2]
[382627140,1756685451331,-500.0,0.00016373,2]
[382627141,1756685451340,-500.0,0.00016373,2]
[382627142,1756685451349,-500.0,0.00016373,2]
[382627143,1756685451359,-500.0,0.00016373,2]
[382627144,1756685451368,-500.0,0.00016373,2]
[382627145,1756685451377,-412.376,0.00016389,2]
[382627146,1756685451386,-379.0,0.00016391,2]
[382627147,1756685451396,-282.58210747,0.00016392,2]
[382627148,1756685451405,-151.0,0.000164,2]
[382627149,1756685451417,-151.0,0.000164,2]
[382627150,1756685451427,-151.0,0.000164,2]
[382627151,1756685451436,-151.0,0.000164,2]
[382627152,1756685451446,-379.0,0.00016415,2]
[382627153,1756685451456,-379.0,0.00016431,2]
[382627154,1756685451465,-500.0,0.00016438,2]
[382627155,1756685451475,-500.0,0.00016438,2]
[382627156,1756685451484,-2110.04,0.00016438,2]
[382627157,1756685451494,-2110.04,0.00016438,2]
[382627158,1756685451504,-2110.04,0.00016438,2]
[382627159,1756685451513,-2110.04,0.00016438,2]
[382627160,1756685451523,-2110.04,0.00016438,2]
[382627161,1756685451532,-2110.04,0.00016438,2]
[382627162,1756685451542,-2110.04,0.00016438,2]
[382627163,1756685451551,-2110.04,0.00016438,2]
[382627164,1756685451561,-2110.04,0.00016438,2]
[382627165,1756685451571,-2110.04,0.00016438,2]
[382627166,1756685451580,-2110.04,0.00016438,2]
[382627167,1756685451590,-2110.04,0.00016438,2]
[382627168,1756685451600,-2110.04,0.00016438,2]
[382627169,1756685451610,-2110.04,0.00016438,2]
[382627170,1756685451620,-2110.04,0.00016438,2]
[382627171,1756685451629,-2110.04,0.00016438,2]
[382627172,1756685451640,-2110.04,0.00016438,2]
[382627173,1756685451650,-2110.04,0.00016438,2]
[382627174,1756685451663,-2110.04,0.00016438,2]
[382627175,1756685451674,-2110.04,0.00016438,2]
[382627176,1756685451684,-2110.04,0.00016438,2]
[382627177,1756685451694,-2110.04,0.00016438,2]
[382627178,1756685451704,-2110.04,0.00016438,2]
[382627179,1756685451714,-2110.14868864,0.00016438,2]
[382627180,1756685451723,-198.0,0.00016438,2]
[382627181,1756685451731,-500.0,0.00016438,2]
[382627182,1756685451741,-500.0,0.00016438,2]
[382627183,1756685451750,-150.0,0.00016438,2]
[382627184,1756685451760,-270.445229,0.00016438,2]
[382627185,1756685451769,-151.0,0.00016438,2]
[382627186,1756685451779,-151.0,0.00016438,2]
[382627187,1756685451788,-151.0,0.00016438,2]
[382627188,1756685451798,-193.694951,0.00016438,2]
[382627189,1756685451808,-151.0,0.00016438,2]
[382627190,1756685451818,-151.0,0.00016438,2]
[382627191,1756685451827,-151.0,0.00016438,2]
[382627192,1756685451836,-151.0,0.00016438,2]
[382627193,1756685451845,-151.0,0.00016438,2]
[382627194,1756685451855,-151.0,0.00016438,2]
[382627195,1756685451864,-293.103662,0.00016438,2]
[382627196,1756685451875,-151.0,0.00016438,2]
[382627197,1756685451884,-151.0,0.00016438,2]
[382627198,1756685451894,-151.0,0.00016438,2]
[382627199,1756685451903,-151.0,0.00016438,2]
[382627200,1756685451917,-151.0,0.00016438,2]
[382627201,1756685451927,-259.411577,0.00016438,2]
[382627202,1756685451936,-151.943352,0.00016438,2]
[382627203,1756685451946,-151.0,0.00016438,2]
[382627204,1756685451955,-151.0,0.00016438,2]
[382627205,1756685451965,-151.0,0.00016438,2]
[382627206,1756685451975,-151.0,0.00016438,2]
[382627207,1756685451984,-151.0,0.00016438,2]
[382627208,1756685451994,-151.0,0.00016438,2]
[382627209,1756685452003,-151.0,0.00016438,2]
[382627210,1756685452013,-151.0,0.00016438,2]
[382627211,1756685452022,-151.0,0.00016438,2]
[382627212,1756685452031,-151.0,0.00016438,2]
[382627213,1756685452041,-182.570074,0.00016438,2]
[382627214,1756685452052,-151.0,0.00016438,2]
[382627215,1756685452062,-151.123548,0.00016438,2]
[382627216,1756685452072,-258.097144,0.00016438,2]
[382627217,1756685452082,-151.0,0.00016438,2]
[382627218,1756685452091,-151.0,0.00016438,2]
[382627219,1756685452101,-151.0,0.00016438,2]
[382627220,1756685452111,-151.0,0.00016438,2]
[382627221,1756685452124,-151.0,0.00016438,2]
[382627222,1756685452134,-151.0,0.00016438,2]
[382627223,1756685452143,-151.0,0.00016438,2]
[382627224,1756685452155,-151.0,0.00016438,2]
[382627225,1756685452167,-184.400329,0.00016438,2]
[382627226,1756685452179,-151.0,0.00016438,2]
[382627227,1756685452190,-151.0,0.00016438,2]
[382627228,1756685452200,-151.0,0.00016438,2]
[382627229,1756685452211,-151.0,0.00016438,2]
[382627230,1756685452221,-151.0,0.00016438,2]
[382627231,1756685452232,-151.0,0.00016438,2]
[382627232,1756685452242,-151.0,0.00016438,2]
[382627233,1756685452252,-151.0,0.00016438,2]
[382627234,1756685452263,-151.0,0.00016438,2]
[382627235,1756685452273,-151.0,0.00016438,2]
[382627236,1756685452283,-289.739314,0.00016438,2]
[382627237,1756685452293,-155.676676,0.00016438,2]
[382627238,1756685452303,-155.676676,0.00016438,2]
[382627239,1756685452312,-155.676676,0.00016438,2]
[382627240,1756685452323,-155.676676,0.00016438,2]
[382627241,1756685452333,-155.676676,0.00016438,2]
[382627242,1756685452343,-155.676676,0.00016438,2]
[382627243,1756685452352,-155.676676,0.00016438,2]
[382627244,1756685452363,-155.676676,0.00016438,2]
[382627245,1756685452373,-155.676676,0.00016438,2]
[382627246,1756685452383,-151.0,0.00016438,2]
[382627247,1756685452393,-151.0,0.00016438,2]
[382627248,1756685452404,-151.0,0.00016438,2]
[382627249,1756685452415,-151.0,0.00016438,2]
[382627250,1756685452425,-151.0,0.00016438,2]
[382627251,1756685452435,-151.0,0.00016438,2]
[382627252,1756685452446,-188.33928,0.00016438,2]
[382627253,1756685452456,-155.676676,0.00016438,2]
[382627254,1756685452466,-155.676676,0.00016438,2]
[382627255,1756685452476,-151.0,0.00016438,2]
[382627256,1756685452486,-155.676676,0.00016438,2]
[382627257,1756685452497,-151.0,0.00016438,2]
[382627258,1756685452507,-155.676676,0.00016438,2]
[382627259,1756685452517,-151.0,0.00016438,2]
[382627260,1756685452527,-155.676676,0.00016438,2]
[382627261,1756685452537,-155.676676,0.00016438,2]
[382627262,1756685452547,-155.676676,0.00016438,2]
[382627263,1756685452557,-155.676676,0.00016438,2]
[382627264,1756685452568,-155.676676,0.00016438,2]
[382627265,1756685452579,-155.676676,0.00016438,2]
[382627266,1756685452589,-155.67667,0.00016438,2]
[382627267,1756685452599,-151.0,0.00016438,2]
[382627268,1756685452609,-151.0,0.00016438,2]
[382627269,1756685452619,-151.0,0.00016438,2]
[382627270,1756685452629,-151.0,0.00016438,2]
[382627271,1756685452639,-151.0,0.00016438,2]
[382627272,1756685452649,-151.0,0.00016438,2]
[382627273,1756685452659,-151.0,0.00016438,2]
[382627274,1756685452670,-151.0,0.00016438,2]
[382627275,1756685452680,-159.342596,0.00016438,2]
[382627276,1756685452690,-159.342596,0.00016438,2]
[382627277,1756685452700,-159.342596,0.00016438,2]
[382627278,1756685452710,-159.342596,0.00016438,2]
[382627279,1756685452720,-159.342596,0.00016438,2]
[382627280,1756685452730,-159.342596,0.00016438,2]
[382627281,1756685452740,-159.342596,0.00016438,2]
[382627282,1756685452751,-159.342596,0.00016438,2]
[382627283,1756685452761,-159.342596,0.00016438,2]
[382627284,1756685452771,-159.342596,0.00016438,2]